bitfinex/quotes_BTCUSD_20250530
["timestamp","ask_amount","ask_price","bid_price","bid_amount"]
[1748608769146,1.21647109,105750.0,105740.0,0.00052874]
[1748608769783,1.2074397,105750.0,105740.0,0.00052874]
[1748608771265,1.1974397,105750.0,105740.0,0.00052874]
[1748608771724,1.22582991,105750.0,105740.0,0.00052874]
[1748608775392,0.79882991,105750.0,105740.0,0.00052874]
[1748608775705,1.22482991,105750.0,105740.0,0.00052874]
[1748608776129,1.22483464,105750.0,105740.0,0.00052874]
[1748608777506,1.31734586,105750.0,105740.0,0.00052874]
[1748608778334,1.22483464,105750.0,105740.0,0.00052874]
[1748608779978,1.63327464,105750.0,105740.0,0.00052874]
[1748608780489,1.6332737,105750.0,105740.0,0.00052874]
[1748608782071,1.64456641,105750.0,105740.0,0.00052874]
[1748608782292,1.59456641,105750.0,105740.0,0.00052874]
[1748608782705,1.61389547,105750.0,105740.0,0.00052874]
[1748608783744,1.27500641,105750.0,105740.0,0.00052874]
[1748608783949,1.59436641,105750.0,105740.0,0.00052874]
[1748608786125,1.59432641,105750.0,105740.0,0.00052874]
[1748608786373,1.64432641,105750.0,105740.0,0.00052874]
[1748608786633,1.59432641,105750.0,105740.0,0.00052874]
[1748608788506,1.59428641,105750.0,105740.0,0.00052874]
[1748608788728,1.64428641,105750.0,105740.0,0.00052874]
[1748608788959,1.16855247,105750.0,105740.0,0.00052874]
[1748608789176,1.5829875,105750.0,105740.0,0.00052874]
[1748608789398,1.1253675,105750.0,105740.0,0.00052874]
[1748608789620,1.04260868,105750.0,105740.0,0.06612874]
[1748608789831,0.80908868,105750.0,105740.0,0.06612874]
[1748608790040,1.14282953,105750.0,105740.0,0.06612874]
[1748608790472,1.12828868,105750.0,105740.0,0.06612874]
[1748608790902,1.14282953,105750.0,105740.0,0.06612874]
[1748608792025,1.12824868,105750.0,105740.0,0.06612874]
[1748608792859,1.12820868,105750.0,105740.0,0.06612874]
[1748608795565,0.80908868,105750.0,105740.0,0.06612874]
[1748608795945,1.12812868,105750.0,105740.0,0.06612874]
[1748608797174,0.70260868,105750.0,105740.0,0.06612874]
[1748608797391,1.12752868,105750.0,105740.0,0.06612874]
[1748608798234,0.80852868,105750.0,105740.0,0.06612874]
[1748608798419,1.12748868,105750.0,105740.0,0.06612874]
[1748608799931,1.12748868,105750.0,105740.0,0.06460874]
[1748608801462,1.46748868,105750.0,105740.0,0.06460874]
[1748608803466,1.46732868,105750.0,105740.0,0.06460874]
[1748608804558,1.04260868,105750.0,105740.0,0.06460874]
[1748608804771,1.04260868,105750.0,105740.0,0.0327]
[1748608804993,1.46728868,105750.0,105740.0,0.0327]
[1748608805228,1.04260868,105750.0,105740.0,0.0327]
[1748608805659,0.19860016,105740.0,105730.0,0.06284]
[1748608805878,0.19860016,105740.0,105730.0,0.06288881]
[1748608806338,0.28965411,105740.0,105730.0,8.881e-05]
[1748608806546,0.69395411,105740.0,105730.0,8.881e-05]
[1748608806771,0.70849496,105740.0,105730.0,8.881e-05]
[1748608807054,0.71049496,105740.0,105730.0,8.881e-05]
[1748608807697,0.71349496,105740.0,105730.0,8.881e-05]
[1748608808787,0.37349496,105740.0,105730.0,8.881e-05]
[1748608809230,0.86600618,105740.0,105730.0,8.881e-05]
[1748608809452,0.84900584,105740.0,105730.0,8.881e-05]
[1748608810309,0.79900584,105740.0,105730.0,8.881e-05]
[1748608810513,0.72349496,105740.0,105730.0,8.881e-05]
[1748608812761,0.37349496,105740.0,105730.0,8.881e-05]
[1748608812973,0.66825496,105740.0,105730.0,8.881e-05]
[1748608814516,0.65825496,105740.0,105730.0,8.881e-05]
[1748608814762,0.30952016,105740.0,105730.0,0.45457371]
[1748608814998,0.20360016,105740.0,105730.0,0.45457371]
[1748608818485,0.20360016,105740.0,105730.0,0.06138881]
[1748608818752,0.20360016,105740.0,105730.0,0.45457371]
[1748608822408,0.20360016,105740.0,105730.0,0.06138881]
[1748608822617,0.20360016,105740.0,105730.0,0.45457371]
[1748608825997,0.20360016,105740.0,105730.0,0.06138881]
[1748608826212,0.20360016,105740.0,105730.0,0.45457371]
[1748608827762,0.20360016,105740.0,105730.0,0.79457371]
[1748608827990,0.2225142,105740.0,105730.0,0.88562766]
[1748608828212,0.21305731,105740.0,105730.0,0.90071727]
[1748608828912,0.21105731,105740.0,105730.0,0.90071727]
[1748608829557,0.20805731,105740.0,105730.0,0.90071727]
[1748608829780,0.20805731,105740.0,105730.0,0.90271727]
[1748608830001,0.22697019,105740.0,105730.0,0.90271727]
[1748608830217,0.01891315,105740.0,105730.0,0.90271727]
[1748608830436,0.01891315,105740.0,105730.0,2.88189717]
[1748608830654,0.02837013,105740.0,105730.0,2.96850717]
[1748608830877,0.19858146,105750.0,105740.0,0.229804]
[1748608831097,0.19858146,105750.0,105740.0,1.48846775]
[1748608831319,0.20803736,105750.0,105740.0,1.50353375]
[1748608832856,0.01891153,105750.0,105740.0,1.50223375]
[1748608833084,0.01891153,105750.0,105740.0,1.18419375]
[1748608833320,0.03782369,105750.0,105740.0,1.84219375]
[1748608834447,0.02836752,105750.0,105740.0,1.84219375]
[1748608834660,0.01891153,105750.0,105740.0,1.84219375]
[1748608835109,0.20801788,105760.0,105740.0,1.98835097]
[1748608835324,0.01890939,105760.0,105750.0,1.8677544]
[1748608835565,0.01890921,105760.0,105750.0,2.55291754]
[1748608835789,0.22692736,105760.0,105750.0,2.21155169]
[1748608836003,0.03781986,105760.0,105750.0,2.02584569]
[1748608836721,0.03881986,105760.0,105750.0,2.02584569]
[1748608836944,0.03781986,105760.0,105750.0,2.02584569]
[1748608837160,0.03781986,105760.0,105750.0,2.01077969]
[1748608837378,0.03781986,105760.0,105750.0,1.23947589]
[1748608837598,0.03781986,105760.0,105750.0,2.01077969]
[1748608837840,0.04727523,105760.0,105750.0,2.01077969]
[1748608838513,0.03781986,105760.0,105750.0,2.01077969]
[1748608838729,0.01890948,105760.0,105750.0,2.01077969]
[1748608838944,0.02836449,105760.0,105750.0,2.01077969]
[1748608839165,0.03781959,105760.0,105750.0,2.01077969]
[1748608839373,0.02836449,105760.0,105750.0,2.01077969]
[1748608839806,0.19856179,105770.0,105750.0,2.15244583]
[1748608840020,0.19856179,105770.0,105760.0,0.4553849]
[1748608840202,0.19856179,105770.0,105760.0,0.54643885]
[1748608840447,0.19856179,105770.0,105760.0,0.88643885]
[1748608840663,0.19852523,105780.0,105770.0,0.496569]
[1748608840879,0.19852523,105780.0,105770.0,2.00526369]
[1748608841089,0.19852523,105780.0,105770.0,1.88094669]
[1748608842012,0.19852523,105780.0,105770.0,1.8809955]
[1748608842227,0.19852523,105780.0,105770.0,1.0835927]
[1748608842437,0.19852523,105780.0,105770.0,1.8699625]
[1748608842658,0.19852523,105780.0,105770.0,1.7946805]
[1748608843139,0.19852523,105780.0,105770.0,1.79465591]
[1748608843357,0.18907165,105780.0,105770.0,1.76455591]
[1748608843570,0.18907165,105780.0,105770.0,1.61484591]
[1748608843784,0.18907165,105780.0,105770.0,1.22166101]
[1748608845043,0.18907165,105780.0,105770.0,0.90394101]
[1748608845255,0.18907165,105780.0,105770.0,1.21028766]
[1748608846510,0.18907165,105780.0,105770.0,1.36872466]
[1748608846716,0.18907165,105780.0,105770.0,1.21028766]
[1748608847327,0.18905378,105790.0,105780.0,0.0656]
[1748608847532,0.00945215,105790.0,105780.0,2.11172063]
[1748608847748,0.20987635,105800.0,105780.0,1.2286771]
[1748608847979,0.01890403,105790.0,105780.0,1.61211325]
[1748608848193,0.00945188,105790.0,105780.0,2.0699572]
[1748608848411,0.20042501,105800.0,105790.0,0.062]
[1748608848631,0.20793886,105800.0,105790.0,0.15305395]
[1748608849288,0.20038007,105800.0,105790.0,0.54623885]
[1748608849479,0.19848752,105800.0,105790.0,0.54623885]
[1748608849707,0.20038007,105800.0,105790.0,0.54623885]
[1748608849935,0.20038007,105800.0,105790.0,0.88623885]
[1748608850158,0.19382128,105800.0,105790.0,0.89736518]
[1748608850376,0.19482128,105800.0,105790.0,0.89740518]
[1748608850631,0.21939065,105800.0,105790.0,0.89740518]
[1748608851133,0.20993904,105800.0,105790.0,0.89740518]
[1748608851371,0.20993931,105800.0,105790.0,0.86690518]
[1748608851639,0.21939065,105800.0,105790.0,0.88280518]
[1748608851882,0.21183186,105800.0,105790.0,0.88280518]
[1748608852103,0.20427307,105800.0,105790.0,0.88280518]
[1748608852599,0.19671428,105800.0,105790.0,0.88280518]
[1748608852856,0.19671428,105800.0,105790.0,0.86690518]
[1748608853100,0.18915549,105800.0,105790.0,0.86690518]
[1748608853363,0.17970415,105800.0,105790.0,0.86690518]
[1748608853619,0.17025254,105800.0,105790.0,0.86690518]
[1748608856571,0.18545254,105800.0,105790.0,0.44222028]
[1748608856853,0.21675254,105800.0,105790.0,0.74435123]
[1748608859494,0.21675254,105800.0,105790.0,0.40435123]
[1748608859918,0.53387254,105800.0,105790.0,0.74435123]
[1748608861011,0.53387254,105800.0,105790.0,0.34004]
[1748608861434,0.53387254,105800.0,105790.0,4e-05]
[1748608862102,0.55154874,105800.0,105790.0,4e-05]
[1748608862311,0.54271063,105800.0,105790.0,4e-05]
[1748608862742,0.64763063,105800.0,105790.0,4e-05]
[1748608862967,0.74752174,105800.0,105790.0,4e-05]
[1748608863196,0.75322543,105800.0,105790.0,4e-05]
[1748608863625,1.09322543,105800.0,105790.0,4e-05]
[1748608864282,1.09522543,105800.0,105790.0,4e-05]
[1748608864553,0.75522543,105800.0,105790.0,4e-05]
[1748608864786,0.76603648,105800.0,105790.0,4e-05]
[1748608865486,0.42356458,105800.0,105790.0,4e-05]
[1748608865713,0.74056458,105800.0,105790.0,0.3932249]
[1748608865935,0.74256458,105800.0,105790.0,0.3932249]
[1748608866367,0.74256458,105800.0,105790.0,4e-05]
[1748608868010,0.21502505,105780.0,105770.0,0.34004881]
[1748608869136,0.21502505,105780.0,105770.0,0.73323371]
[1748608869562,0.21502505,105780.0,105770.0,0.73423371]
[1748608869992,0.21502505,105780.0,105770.0,0.39423371]
[1748608870209,0.21502505,105780.0,105770.0,0.39523371]
[1748608870668,0.19852505,105780.0,105770.0,0.49756946]
[1748608870893,0.20797836,105780.0,105770.0,0.51316946]
[1748608871332,0.19798609,105780.0,105770.0,0.51316946]
[1748608871537,0.19798609,105780.0,105770.0,0.51318421]
[1748608871752,0.19798609,105780.0,105770.0,0.52888421]
[1748608871967,0.19798609,105780.0,105770.0,0.92206911]
[1748608872228,0.19798609,105780.0,105770.0,0.52888421]
[1748608872671,0.19798609,105780.0,105770.0,0.92206911]
[1748608872889,0.19798609,105780.0,105770.0,0.52888421]
[1748608873575,0.19798609,105780.0,105770.0,0.86888421]
[1748608874040,0.19798609,105780.0,105770.0,1.18572421]
[1748608874253,0.19798609,105780.0,105770.0,1.17002421]
[1748608875579,0.19798609,105780.0,105770.0,1.18532421]
[1748608875808,0.19798609,105780.0,105770.0,1.18532158]
[1748608876911,0.19798609,105780.0,105770.0,1.17002158]
[1748608877821,0.19798609,105780.0,105770.0,1.18512158]
[1748608878035,0.19798609,105780.0,105770.0,1.17002158]
[1748608880230,0.19798609,105780.0,105770.0,0.83002322]
[1748608882070,0.19798609,105780.0,105770.0,1.17002322]
[1748608882294,0.19798609,105780.0,105770.0,1.15442322]
[1748608883003,0.21458609,105780.0,105770.0,1.15442322]
[1748608883692,0.21458609,105780.0,105770.0,1.16948922]
[1748608884614,0.21458609,105780.0,105770.0,1.16949862]
[1748608884826,0.22978609,105780.0,105770.0,0.36841977]
[1748608885075,0.22978609,105780.0,105770.0,0.02841977]
[1748608885336,0.22978609,105780.0,105770.0,0.41029971]
[1748608885551,0.22978609,105780.0,105770.0,0.39523371]
[1748608886672,0.22978609,105780.0,105770.0,0.40653867]
[1748608888782,0.22978609,105780.0,105770.0,0.01335377]
[1748608889001,0.22978609,105780.0,105770.0,0.40655636]
[1748608891732,0.22978609,105780.0,105770.0,0.01337146]
[1748608891960,0.22978609,105780.0,105770.0,0.40655636]
[1748608893253,0.22978609,105780.0,105770.0,0.40656]
[1748608895301,0.22978609,105780.0,105770.0,0.74656]
[1748608897505,0.22978609,105780.0,105770.0,0.73523371]
[1748608897714,0.22978609,105780.0,105770.0,0.74656173]
[1748608901735,0.22978609,105780.0,105770.0,0.35337683]
[1748608902094,0.22978609,105780.0,105770.0,0.74656118]
[1748608902876,0.22978609,105780.0,105770.0,0.7532002]
[1748608903432,0.22978609,105780.0,105770.0,0.75320058]
[1748608904126,0.22978609,105780.0,105770.0,0.75320057]
[1748608904535,0.22978609,105780.0,105770.0,0.74656117]
[1748608906011,0.22978609,105780.0,105770.0,0.76162717]
[1748608906225,0.22978609,105780.0,105770.0,0.75029971]
[1748608906450,0.22978609,105780.0,105770.0,0.76162786]
[1748608906702,0.22978609,105780.0,105770.0,0.74656186]
[1748608907605,0.22978609,105780.0,105770.0,0.76162786]
[1748608908498,0.22978609,105780.0,105770.0,0.76826728]
[1748608908728,0.22978609,105780.0,105770.0,0.76162786]
[1748608908948,0.22978609,105780.0,105770.0,0.76826727]
[1748608909387,0.22978609,105780.0,105770.0,0.76162786]
[1748608909823,0.22978609,105780.0,105770.0,0.77877276]
[1748608910246,0.22978609,105780.0,105770.0,0.37894354]
[1748608910511,0.22978609,105780.0,105770.0,0.77877276]
[1748608910740,0.22978609,105780.0,105770.0,0.77877278]
[1748608911632,0.22978609,105780.0,105770.0,0.77212844]
[1748608912080,0.22978609,105780.0,105770.0,0.77877278]
[1748608912324,0.22978609,105780.0,105770.0,0.77877279]
[1748608913302,0.22978609,105780.0,105770.0,0.77212844]
[1748608913521,0.22978609,105780.0,105770.0,0.76744464]
[1748608913754,0.21458609,105780.0,105770.0,0.76080029]
[1748608914016,0.21458609,105780.0,105770.0,0.76744444]
[1748608914238,0.21458609,105780.0,105770.0,0.76080029]
[1748608915000,0.21458609,105780.0,105770.0,0.76744431]
[1748608917688,0.19798609,105780.0,105770.0,0.76744431]
[1748608918703,0.19798609,105780.0,105770.0,0.42744431]
[1748608919462,0.19798609,105780.0,105770.0,0.43408833]
[1748608919691,0.19798609,105780.0,105770.0,0.4340861]
[1748608919935,0.19798609,105780.0,105770.0,0.42744431]
[1748608920141,0.19798609,105780.0,105770.0,0.4340861]
[1748608920798,0.19798609,105780.0,105770.0,0.7740861]
[1748608921025,0.19798609,105780.0,105770.0,0.7740859]
[1748608921246,0.19798609,105780.0,105770.0,0.76744431]
[1748608921466,0.19798609,105780.0,105770.0,0.78344431]
[1748608921691,0.19798609,105780.0,105770.0,0.79008445]
[1748608922373,0.19798609,105780.0,105770.0,0.78344431]
[1748608922604,0.19798609,105780.0,105770.0,0.79008441]
[1748608922810,0.19798609,105780.0,105770.0,0.77408441]
[1748608923029,0.19798609,105780.0,105770.0,0.77408289]
[1748608923248,0.19798609,105780.0,105770.0,0.77408293]
[1748608923465,0.19798609,105780.0,105770.0,0.77408292]
[1748608923653,0.19798609,105780.0,105770.0,0.77408293]
[1748608923890,0.19798609,105780.0,105770.0,0.77408273]
[1748608924097,0.19798609,105780.0,105770.0,0.76744431]
[1748608925805,0.19798609,105780.0,105770.0,0.77408273]
[1748608926999,0.19798609,105780.0,105770.0,0.78072095]
[1748608927623,0.19798609,105780.0,105770.0,0.77408273]
[1748608927835,0.19798609,105780.0,105770.0,0.78072095]
[1748608928046,0.19798609,105780.0,105770.0,0.77408273]
[1748608928689,0.19798609,105780.0,105770.0,0.8876749]
[1748608928927,0.18905378,105790.0,105780.0,0.34]
[1748608929150,0.17909063,105800.0,105780.0,1.74712898]
[1748608929369,0.00883809,105800.0,105790.0,2.25911431]
[1748608929569,0.00883809,105800.0,105790.0,2.23946557]
[1748608929788,0.02774033,105800.0,105790.0,1.7705173]
[1748608930007,0.02774033,105800.0,105790.0,1.73433063]
[1748608930228,0.0371915,105800.0,105790.0,1.72771365]
[1748608930445,0.0371915,105800.0,105790.0,1.74661858]
[1748608930446,0.02774016,105800.0,105790.0,1.74661858]
[1748608930661,0.01828926,105800.0,105790.0,1.73716616]
[1748608930872,0.01828926,105800.0,105790.0,1.72771365]
[1748608931082,0.02774051,105800.0,105790.0,1.72771365]
[1748608931298,0.02774051,105800.0,105790.0,1.73432931]
[1748608931533,0.02774051,105800.0,105790.0,1.84416616]
[1748608931534,0.01828926,105800.0,105790.0,1.84416616]
[1748608932183,0.01828908,105800.0,105790.0,1.85378179]
[1748608932392,0.02774025,105800.0,105790.0,1.85661858]
[1748608932602,0.01828908,105800.0,105790.0,1.85661858]
[1748608932823,0.00883809,105800.0,105790.0,1.84716616]
[1748608933030,0.00883809,105800.0,105790.0,1.85661823]
[1748608933242,0.04907654,105810.0,105800.0,0.371]
[1748608933498,0.03962591,105810.0,105800.0,1.58520636]
[1748608933709,0.04907663,105810.0,105800.0,1.57859231]
[1748608933888,0.23809468,105810.0,105800.0,1.57859231]
[1748608934136,0.04907663,105810.0,105800.0,1.57859231]
[1748608934353,0.04907663,105810.0,105800.0,1.58520623]
[1748608934576,0.0207251,105810.0,105800.0,5.85591293]
[1748608934792,0.03017519,105810.0,105800.0,5.46998333]
[1748608935003,0.03017519,105810.0,105800.0,5.46714576]
[1748608935222,0.02834913,105820.0,105800.0,5.45488324]
[1748608935447,0.01889921,105820.0,105810.0,0.90450048]
[1748608935662,0.01889921,105820.0,105810.0,0.92000048]
[1748608936197,0.01749921,105820.0,105810.0,0.92661406]
[1748608936199,0.0094492,105820.0,105810.0,1.11563126]
[1748608936409,0.01889689,105830.0,105820.0,0.57015018]
[1748608936626,0.00048871,105830.0,105820.0,3.17854614]
[1748608936844,0.03779144,105840.0,105830.0,0.3556]
[1748608937050,0.04723921,105840.0,105830.0,1.2442913]
[1748608937260,0.00014655,105840.0,105830.0,1.31329737]
[1748608937490,0.00959397,105840.0,105830.0,2.7021677]
[1748608937699,0.03793755,105840.0,105830.0,0.80451262]
[1748608937905,0.02848942,105840.0,105830.0,1.54087142]
[1748608938132,0.01904156,105840.0,105830.0,1.74891477]
[1748608938375,0.0094475,105840.0,105830.0,0.72552172]
[1748608938598,0.00944742,105840.0,105830.0,2.01448218]
[1748608938849,0.20403051,105860.0,105850.0,0.34]
[1748608939070,0.20407933,105860.0,105850.0,0.82423885]
[1748608939315,0.01504882,105860.0,105850.0,1.21742375]
[1748608939521,0.02838733,105860.0,105850.0,0.74593395]
[1748608939736,0.03783314,105860.0,105850.0,1.14572832]
[1748608939952,0.04727957,105860.0,105850.0,1.13911885]
[1748608940212,0.04727957,105860.0,105850.0,1.14572829]
[1748608940395,0.22676253,105860.0,105850.0,1.13911885]
[1748608940623,0.22776253,105860.0,105850.0,1.14572828]
[1748608940842,0.02938733,105860.0,105850.0,1.13911885]
[1748608941057,0.01994107,105860.0,105850.0,1.15521885]
[1748608941268,0.02938741,105860.0,105850.0,1.16182641]
[1748608941476,0.02938741,105860.0,105850.0,1.18630371]
[1748608941707,0.21831618,105860.0,105850.0,1.16182641]
[1748608941914,0.23481618,105860.0,105850.0,0.83745396]
[1748608942149,0.23481618,105860.0,105850.0,1.14564641]
[1748608942150,0.2253701,105860.0,105850.0,1.14564641]
[1748608943231,0.2253701,105860.0,105850.0,1.14560641]
[1748608943451,0.2253701,105860.0,105850.0,1.1522121]
[1748608943672,0.2253701,105860.0,105850.0,1.15627706]
[1748608943892,0.21592393,105860.0,105850.0,1.16288275]
[1748608944102,0.21592393,105860.0,105850.0,1.15627706]
[1748608944320,0.20647759,105860.0,105850.0,1.15627706]
[1748608944537,0.00104882,105860.0,105850.0,1.97129197]
[1748608944762,0.00104882,105860.0,105850.0,1.98073885]
[1748608944973,0.01049463,105860.0,105850.0,1.17547511]
[1748608945224,0.01049463,105860.0,105850.0,1.92108391]
[1748608945435,0.01049463,105860.0,105850.0,1.93053106]
[1748608945675,0.01994062,105860.0,105850.0,1.92108391]
[1748608945904,0.03594089,105860.0,105850.0,1.26215006]
[1748608946124,0.04538706,105860.0,105850.0,1.15627706]
[1748608946343,0.04538706,105860.0,105850.0,1.15619706]
[1748608946344,0.23431618,105860.0,105850.0,1.15619706]
[1748608946568,0.2248701,105860.0,105850.0,0.81619706]
[1748608946784,0.2248701,105860.0,105850.0,1.15619706]
[1748608946993,0.2413701,105860.0,105850.0,1.15615706]
[1748608947798,0.2413701,105860.0,105850.0,1.16276276]
[1748608948012,0.2413701,105860.0,105850.0,1.15615706]
[1748608948218,0.2413701,105860.0,105850.0,1.16276276]
[1748608948571,0.2413701,105860.0,105850.0,1.16936845]
[1748608948772,0.2413701,105860.0,105850.0,1.16276276]
[1748608949121,0.2413701,105860.0,105850.0,0.46158355]
[1748608949324,0.2413701,105860.0,105850.0,1.16928846]
[1748608949565,0.2413701,105860.0,105850.0,0.50816276]
[1748608949771,0.2413701,105860.0,105850.0,0.84816276]
[1748608950412,0.2413701,105860.0,105850.0,0.85476482]
[1748608950624,0.2413701,105860.0,105850.0,0.46157992]
[1748608950834,0.2413701,105860.0,105850.0,0.85476482]
[1748608951812,0.2413701,105860.0,105850.0,0.86136019]
[1748608952028,0.2413701,105860.0,105850.0,0.86132788]
[1748608952239,0.2248701,105860.0,105850.0,0.86132788]
[1748608952678,0.2248701,105860.0,105850.0,0.86134065]
[1748608952889,0.2248701,105860.0,105850.0,0.86134064]
[1748608953104,0.2248701,105860.0,105850.0,0.85476482]
[1748608953366,0.2248701,105860.0,105850.0,0.46815575]
[1748608953604,0.2248701,105860.0,105850.0,0.86134065]
[1748608953833,0.2405701,105860.0,105850.0,1.17574065]
[1748608954276,0.2405701,105860.0,105850.0,1.17575223]
[1748608954946,0.2405701,105860.0,105850.0,1.17575221]
[1748608955173,0.2405701,105860.0,105850.0,1.17575902]
[1748608955492,0.2405701,105860.0,105850.0,0.78257412]
[1748608955587,0.2405701,105860.0,105850.0,1.17575902]
[1748608956115,0.2405701,105860.0,105850.0,1.16916482]
[1748608956640,0.2248701,105860.0,105850.0,1.17575903]
[1748608956879,0.2248701,105860.0,105850.0,1.16916482]
[1748608957399,0.2248701,105860.0,105850.0,1.35795402]
[1748608957630,0.2248701,105860.0,105850.0,1.17575902]
[1748608958352,0.2248701,105860.0,105850.0,1.17576358]
[1748608958569,0.2248701,105860.0,105850.0,1.17576365]
[1748608958774,0.2248701,105860.0,105850.0,1.16916482]
[1748608959220,0.2411701,105860.0,105850.0,1.17576365]
[1748608959701,0.2411701,105860.0,105850.0,1.16916482]
[1748608960411,0.2411701,105860.0,105850.0,0.77597992]
[1748608960673,0.2411701,105860.0,105850.0,1.1758034]
[1748608960885,0.2411701,105860.0,105850.0,1.16916482]
[1748608961095,0.2248701,105860.0,105850.0,1.1758034]
[1748608961521,0.2248701,105860.0,105850.0,1.17580341]
[1748608961958,0.2248701,105860.0,105850.0,1.17580271]
[1748608962403,0.2248701,105860.0,105850.0,1.16916482]
[1748608962627,0.2248701,105860.0,105850.0,1.17580255]
[1748608964306,0.2088701,105860.0,105850.0,1.17580255]
[1748608964534,0.2241701,105860.0,105850.0,1.17580255]
[1748608964994,0.2241701,105860.0,105850.0,1.17580252]
[1748608965230,0.2241701,105860.0,105850.0,1.18421338]
[1748608965467,0.2241701,105860.0,105850.0,1.19085108]
[1748608965715,0.2241701,105860.0,105850.0,1.18421338]
[1748608966210,0.20786103,105880.0,105870.0,1.1263698]
[1748608966450,0.01893704,105880.0,105870.0,3.59010075]
[1748608966692,0.00949302,105880.0,105870.0,3.41487509]
[1748608966923,0.0188884,105880.0,105870.0,3.35023709]
[1748608967145,0.0283326,105880.0,105870.0,3.32844409]
[1748608967391,0.01888867,105880.0,105870.0,1.68248109]
[1748608967611,0.0283326,105880.0,105870.0,3.78923392]
[1748608967831,0.0283326,105880.0,105870.0,1.59366211]
[1748608968053,0.01888822,105880.0,105870.0,2.37439609]
[1748608968291,0.0283326,105880.0,105870.0,2.37539609]
[1748608968509,0.01888858,105880.0,105870.0,2.37539609]
[1748608968734,0.0283326,105880.0,105870.0,2.37539609]
[1748608969021,0.00944402,105880.0,105870.0,2.37539609]
[1748608969266,0.00944402,105880.0,105870.0,2.57375246]
[1748608969510,0.01888779,105880.0,105870.0,3.11759124]
[1748608969748,0.00944394,105880.0,105870.0,2.91923487]
[1748608969992,0.00944394,105880.0,105870.0,2.74415109]
[1748608970232,0.01888831,105880.0,105870.0,1.68448109]
[1748608970464,0.01888796,105880.0,105870.0,2.62653109]
[1748608970967,0.01888823,105880.0,105870.0,2.63316687]
[1748608971192,0.02484304,105890.0,105870.0,1.88283737]
[1748608971426,0.01888796,105880.0,105870.0,2.4238643]
[1748608971677,0.21372047,105890.0,105880.0,0.09105395]
[1748608971905,0.21372047,105890.0,105880.0,0.1089796]
[1748608972155,0.21372047,105890.0,105880.0,0.10895993]
[1748608972636,0.21372047,105890.0,105880.0,0.49552872]
[1748608973120,0.03428707,105890.0,105880.0,0.49552872]
[1748608973373,0.20776231,105890.0,105880.0,0.51052872]
[1748608973610,0.20776231,105890.0,105880.0,0.51714483]
[1748608973846,0.20776231,105890.0,105880.0,0.51052872]
[1748608974083,0.22356231,105890.0,105880.0,0.49552872]
[1748608975223,0.22356231,105890.0,105880.0,0.5021385]
[1748608975437,0.22356231,105890.0,105880.0,0.49552239]
[1748608975861,0.23986231,105890.0,105880.0,0.49552239]
[1748608976288,0.23986231,105890.0,105880.0,0.8159385]
[1748608976723,0.23986231,105890.0,105880.0,0.80932239]
[1748608976942,0.23986231,105890.0,105880.0,0.81593847]
[1748608977151,0.23986231,105890.0,105880.0,0.41613749]
[1748608977360,0.23986231,105890.0,105880.0,0.81593849]
[1748608977796,0.22356231,105890.0,105880.0,0.80932239]
[1748608978019,0.22356231,105890.0,105880.0,0.81593849]
[1748608978237,0.22356231,105890.0,105880.0,0.80932239]
[1748608978711,0.22356231,105890.0,105880.0,0.80924239]
[1748608979368,0.23996231,105890.0,105880.0,0.48423885]
[1748608979586,0.23996231,105890.0,105880.0,0.80923562]
[1748608979814,0.23051891,105890.0,105880.0,0.81585157]
[1748608980026,0.23051891,105890.0,105880.0,0.80923562]
[1748608980242,0.23051891,105890.0,105880.0,0.81585156]
[1748608980682,0.23051891,105890.0,105880.0,0.80923562]
[1748608981336,0.21411891,105890.0,105880.0,0.80923562]
[1748608981556,0.01888707,105890.0,105880.0,0.80923562]
[1748608981771,0.20776231,105890.0,105880.0,0.81585155]
[1748608981986,0.22366231,105890.0,105880.0,0.81585019]
[1748608982200,0.22366231,105890.0,105880.0,0.49551552]
[1748608982429,0.22366231,105890.0,105880.0,0.80915552]
[1748608982654,0.01888644,105890.0,105880.0,0.82435552]
[1748608982900,0.02832993,105890.0,105880.0,0.83943286]
[1748608983119,0.03777351,105890.0,105880.0,0.83943286]
[1748608983340,0.04721727,105890.0,105880.0,0.84604737]
[1748608983555,0.22664938,105890.0,105880.0,0.83943286]
[1748608984247,0.22664938,105890.0,105880.0,0.83384572]
[1748608984483,0.22664938,105890.0,105880.0,0.82723286]
[1748608985195,0.22356258,105890.0,105880.0,0.82723286]
[1748608985433,0.22356258,105890.0,105880.0,0.8328436]
[1748608985884,0.22356258,105890.0,105880.0,0.8337636]
[1748608986109,0.22356258,105890.0,105880.0,0.84037436]
[1748608986404,0.22356258,105890.0,105880.0,0.8337636]
[1748608986633,0.22356258,105890.0,105880.0,0.52020533]
[1748608986863,0.22356258,105890.0,105880.0,0.83372533]
[1748608987093,0.214119,105890.0,105880.0,0.84033609]
[1748608987310,0.214119,105890.0,105880.0,0.83372533]
[1748608989157,0.230419,105890.0,105880.0,0.83372533]
[1748608989629,0.214119,105890.0,105880.0,0.84033334]
[1748608989862,0.198319,105890.0,105880.0,0.84694135]
[1748608990144,0.20776249,105890.0,105880.0,0.87874135]
[1748608990384,0.20776249,105890.0,105880.0,0.86746295]
[1748608990618,0.21720562,105890.0,105880.0,0.86745922]
[1748608990860,0.01888617,105890.0,105880.0,0.5497852]
[1748608991104,0.03777288,105890.0,105880.0,1.48588187]
[1748608991342,0.0377727,105890.0,105880.0,1.30323394]
[1748608991812,0.0377727,105890.0,105880.0,1.70302099]
[1748608992048,0.00944206,105900.0,105880.0,1.82296495]
[1748608992283,0.22662781,105900.0,105890.0,0.90767788]
[1748608992518,0.21718548,105900.0,105890.0,1.22103788]
[1748608992769,0.0153,105910.0,105890.0,1.76596043]
[1748608993010,0.20772764,105910.0,105900.0,0.81898412]
[1748608993239,0.20772326,105910.0,105900.0,0.91896732]
[1748608993986,0.23634471,105920.0,105900.0,1.93051434]
[1748608993987,0.0158022,105920.0,105900.0,1.93051434]
[1748608994232,0.23309199,105920.0,105910.0,0.82870795]
[1748608994472,0.23309199,105920.0,105910.0,0.81365885]
[1748608994473,0.02538941,105920.0,105910.0,0.81365885]
[1748608994716,0.23955215,105920.0,105910.0,0.51813196]
[1748608994963,0.25149902,105920.0,105910.0,0.51813196]
[1748608995219,0.25149902,105920.0,105910.0,0.84936466]
[1748608995448,0.25149902,105920.0,105910.0,0.83806034]
[1748608995946,0.25149902,105920.0,105910.0,0.83806062]
[1748608996547,0.21149902,105920.0,105910.0,0.83906068]
[1748608997212,0.21149902,105920.0,105910.0,0.83897947]
[1748608997671,0.21149902,105920.0,105910.0,0.85026853]
[1748608997895,0.21149902,105920.0,105910.0,0.84366062]
[1748608998129,0.21149902,105920.0,105910.0,0.53042062]
[1748608998378,0.21149902,105920.0,105910.0,0.82857461]
[1748608998601,0.21149902,105920.0,105910.0,0.73752066]
[1748608999069,0.21149902,105920.0,105910.0,0.78752066]
[1748608999537,0.21149902,105920.0,105910.0,0.79412892]
[1748608999760,0.21149902,105920.0,105910.0,0.39433484]
[1748609000002,0.21149902,105920.0,105910.0,0.480928]
[1748609000232,0.21149902,105920.0,105910.0,0.78747974]
[1748609000654,0.21149902,105920.0,105910.0,1.13408799]
[1748609001670,0.21149902,105920.0,105910.0,1.14069624]